bitfinex/quotes_BTCUSD_20241226
["timestamp","ask_amount","ask_price","bid_price","bid_amount"]
[1735237071746,0.00130519,95775.0,95769.0,0.00215524]
[1735237071975,0.00130519,95775.0,95769.0,0.00124074]
[1735237072361,0.00130519,95775.0,95769.0,0.00224074]
[1735237072562,0.00130519,95775.0,95769.0,0.00124074]
[1735237072767,0.208828,95773.0,95769.0,0.00124074]
[1735237072982,0.208828,95773.0,95769.0,0.00724074]
[1735237073201,0.208831,95771.0,95769.0,0.01124074]
[1735237073448,0.04740522,95770.0,95769.0,0.01124074]
[1735237073657,0.04740522,95770.0,95769.0,0.00024074]
[1735237074081,0.04740522,95770.0,95769.0,0.00724074]
[1735237074291,0.04740522,95770.0,95769.0,0.00024074]
[1735237074505,0.04740522,95770.0,95769.0,0.00524074]
[1735237075360,0.04740522,95770.0,95769.0,0.005]
[1735237075588,0.04740522,95770.0,95769.0,0.008]
[1735237075802,0.04740522,95770.0,95747.0,0.2089685]
[1735237075978,0.13907051,95770.0,95747.0,0.20912365]
[1735237076188,0.05140522,95770.0,95769.0,0.002]
[1735237076400,0.04740522,95770.0,95769.0,0.002]
[1735237076617,0.208835,95769.0,95754.0,0.208868]
[1735237076829,0.208854,95761.0,95747.0,0.00024065]
[1735237077038,0.208868,95754.0,95747.0,0.00124065]
[1735237077382,0.208868,95754.0,95747.0,0.00024065]
[1735237077798,0.208879,95750.0,95747.0,0.00024065]
[1735237078194,0.28407,95754.0,95747.0,0.00024065]
[1735237078397,0.208872,95752.0,95747.0,0.00024065]
[1735237078622,0.28407,95754.0,95747.0,0.00024065]
[1735237078886,0.001,95750.0,95747.0,0.00024065]
[1735237079321,0.001,95750.0,95747.0,0.00124065]
[1735237079536,0.00130548,95753.0,95747.0,0.00124065]
[1735237080140,0.00130548,95753.0,95747.0,0.00024065]
[1735237080354,0.004,95752.0,95742.0,0.208894]
[1735237081040,0.004,95752.0,95737.0,0.208904]
[1735237081246,0.004,95752.0,95747.0,0.004]
[1735237081468,0.0014242,95753.0,95747.0,0.004]
[1735237081908,0.208872,95752.0,95747.0,0.004]
[1735237082342,0.208872,95752.0,95737.0,0.25392165]
[1735237082550,0.208872,95752.0,95741.0,0.208895]
[1735237082781,0.209872,95752.0,95742.0,0.004]
[1735237083192,0.209872,95752.0,95741.0,0.208895]
[1735237083430,0.001,95752.0,95747.0,0.004]
[1735237084250,0.001,95752.0,95742.0,8.55e-05]
[1735237084460,0.0014242,95753.0,95741.0,0.2049805]
[1735237084685,0.00011872,95753.0,95749.0,0.417756]
[1735237084917,0.001,95752.0,95749.0,0.417756]
[1735237085134,0.00011872,95753.0,95730.0,0.0783]
[1735237085380,0.09166529,95750.0,95720.0,0.0783]
[1735237085598,0.208913,95734.0,95720.0,0.208942]
[1735237085816,0.0752,95739.0,95718.0,8.56e-05]
[1735237086034,0.20892,95731.0,95718.0,8.56e-05]
[1735237086248,0.208914,95734.0,95719.0,0.208944]
[1735237086462,0.208922,95730.0,95718.0,8.56e-05]
[1735237086894,0.208916,95733.0,95720.0,0.001]
[1735237087110,0.208918,95731.0,95720.0,0.001]
[1735237087321,0.00130575,95730.0,95718.0,8.56e-05]
[1735237087529,0.208914,95733.0,95718.0,0.2090316]
[1735237087768,0.009,95730.0,95718.0,0.2100316]
[1735237089183,0.00130576,95732.0,95718.0,0.2090316]
[1735237089458,0.009,95730.0,95718.0,0.2100316]
[1735237089666,0.018,95730.0,95718.0,0.2100316]
[1735237089870,0.018,95730.0,95722.0,0.208937]
[1735237090072,0.009,95730.0,95722.0,0.208937]
[1735237090209,0.009,95730.0,95718.0,0.2100316]
[1735237090652,0.00130576,95732.0,95718.0,0.2090316]
[1735237091071,0.01030576,95732.0,95723.0,0.208936]
[1735237091274,0.00130576,95736.0,95724.0,0.25123076]
[1735237091497,0.208891,95744.0,95724.0,0.04281931]
[1735237091746,0.009,95730.0,95723.0,0.10450857]
[1735237091958,0.208894,95742.0,95730.0,0.208919]
[1735237092369,0.498564,95748.0,95730.0,0.208919]
[1735237092575,0.009,95732.0,95730.0,0.208919]
[1735237092783,0.01,95732.0,95730.0,0.208919]
[1735237092997,0.001,95732.0,95730.0,0.208919]
[1735237093416,0.001,95732.0,95730.0,0.210919]
[1735237093827,0.20888,95749.0,95738.0,0.208902]
[1735237094072,0.20898972,95753.0,95730.0,0.208919]
[1735237094073,0.00011872,95753.0,95731.0,0.15]
[1735237094284,0.00011872,95753.0,95750.0,0.208876]
[1735237094914,0.00011872,95753.0,95750.0,0.417752]
[1735237095329,0.00911872,95753.0,95750.0,0.417752]
[1735237095723,0.00911872,95753.0,95752.0,0.15]
[1735237095927,0.01811872,95753.0,95752.0,0.51245832]
[1735237096150,0.01811872,95753.0,95749.0,0.208877]
[1735237096358,0.02311872,95753.0,95750.0,0.001]
[1735237096807,0.01811872,95753.0,95749.0,0.208877]
[1735237097248,0.00511872,95753.0,95752.0,0.001]
[1735237097458,0.01411872,95753.0,95752.0,0.001]
[1735237097664,0.00511872,95753.0,95752.0,0.001]
[1735237098181,0.01411872,95753.0,95752.0,0.001]
[1735237098392,0.00011872,95753.0,95749.0,0.417754]
[1735237098609,0.00011872,95753.0,95752.0,0.001]
[1735237098610,0.01411872,95753.0,95752.0,0.001]
[1735237099176,0.00911872,95753.0,95752.0,0.001]
[1735237099402,0.22298872,95753.0,95752.0,0.002]
[1735237100616,0.21398872,95753.0,95752.0,0.001]
[1735237101026,0.22298872,95753.0,95752.0,0.001]
[1735237101451,0.21398872,95753.0,95752.0,0.001]
[1735237101854,0.21498872,95753.0,95752.0,0.005]
[1735237102056,0.21498872,95753.0,95736.0,0.208907]
[1735237102057,0.20998872,95753.0,95736.0,0.208907]
[1735237102297,0.00130549,95752.0,95736.0,0.208907]
[1735237102744,0.00111872,95753.0,95745.0,0.208887]
[1735237103176,0.01011872,95753.0,95745.0,0.208887]
[1735237103677,0.01111872,95753.0,95749.0,0.208879]
[1735237103900,0.00911872,95753.0,95749.0,0.417758]
[1735237104120,0.01011872,95753.0,95749.0,0.417758]
[1735237104560,0.01011872,95753.0,95749.0,0.44433594]
[1735237104784,0.00911872,95753.0,95749.0,0.44433594]
[1735237105027,0.00011872,95753.0,95749.0,0.44433594]
[1735237105243,0.00111872,95753.0,95749.0,0.44433594]
[1735237105698,0.00111872,95753.0,95749.0,0.417758]
[1735237106168,0.00111872,95753.0,95749.0,0.422758]
[1735237108274,0.00111872,95753.0,95751.0,0.208875]
[1735237108483,0.00128992,95753.0,95752.0,0.10398632]
[1735237109854,0.00028992,95753.0,95752.0,0.10398632]
[1735237109993,0.00128992,95753.0,95752.0,0.19685269]
[1735237110194,0.00128992,95753.0,95752.0,0.29039664]
[1735237110609,0.253823,95775.0,95752.0,0.29039664]
[1735237111045,0.253823,95775.0,95754.0,0.208868]
[1735237111254,0.253823,95775.0,95763.0,0.208848]
[1735237112217,0.208818,95777.0,95767.0,0.208838]
[1735237112407,0.00130517,95776.0,95767.0,0.208838]
[1735237112645,0.208818,95777.0,95767.0,0.208838]
[1735237113070,0.208818,95777.0,95755.0,0.10398632]
[1735237113321,0.0761,95778.0,95755.0,0.10398632]
[1735237113542,0.208818,95777.0,95764.0,0.208846]
[1735237113726,0.002,95775.0,95756.0,0.16968527]
[1735237113909,0.002,95775.0,95767.0,0.208839]
[1735237114122,0.07740517,95778.0,95767.0,0.208839]
[1735237114366,0.003,95777.0,95767.0,0.208839]
[1735237114597,0.0761,95778.0,95767.0,0.2297229]
[1735237114810,0.0761,95778.0,95767.0,0.208839]
[1735237115022,0.009,95775.0,95767.0,0.208839]
[1735237115227,0.00130517,95777.0,95767.0,0.208839]
[1735237115436,0.00230517,95777.0,95767.0,0.208839]
[1735237115870,0.00230517,95777.0,95767.0,0.213839]
[1735237116115,0.00230517,95777.0,95773.0,0.14053437]
[1735237116279,0.001,95777.0,95774.0,0.208824]
[1735237116485,0.001,95777.0,95774.0,0.417648]
[1735237116825,0.0761,95797.0,95775.0,0.10398632]
[1735237117046,0.00015527,95796.0,95786.0,0.208797]
[1735237117226,0.00015527,95796.0,95790.0,0.208789]
[1735237117468,0.00015527,95796.0,95794.0,0.208779]
[1735237118719,0.00115527,95796.0,95794.0,0.208779]
[1735237120175,0.00015527,95796.0,95795.0,0.19761396]
[1735237120380,0.00915527,95796.0,95795.0,0.19761396]
[1735237120590,0.00915527,95796.0,95795.0,0.30160028]
[1735237121253,0.00815527,95796.0,95795.0,0.30160028]
[1735237121505,0.01715527,95796.0,95795.0,0.20897264]
[1735237121722,0.00915527,95796.0,95795.0,0.20897264]
[1735237121932,0.01015527,95796.0,95795.0,0.21597264]
[1735237122110,0.01032647,95796.0,95795.0,0.21497264]
[1735237122316,0.00132647,95796.0,95795.0,0.21497264]
[1735237123648,0.00232647,95796.0,95795.0,0.21897264]
[1735237125480,0.00232647,95796.0,95795.0,0.11498632]
[1735237125720,0.00232647,95796.0,95795.0,0.011]
[1735237127184,0.208779,95795.0,95782.0,0.208807]
[1735237127685,0.208779,95795.0,95770.0,0.208832]
[1735237127935,0.208799,95786.0,95771.0,0.13402679]
[1735237128189,0.208799,95786.0,95771.0,0.10398632]
[1735237128437,0.208822,95776.0,95763.0,0.09362764]
[1735237128696,0.00130518,95775.0,95758.0,0.208857]
[1735237128950,0.21012718,95775.0,95759.0,0.03222555]
[1735237129193,0.083,95786.0,95770.0,0.001]
[1735237129399,0.00130508,95785.0,95774.0,0.208824]
[1735237129618,0.21010608,95785.0,95770.0,0.209833]
[1735237130313,0.21010608,95785.0,95770.0,0.208833]
[1735237130573,0.009,95776.0,95774.0,0.208823]
[1735237130824,0.009,95776.0,95770.0,0.212833]
[1735237131040,0.00130508,95785.0,95770.0,0.212833]
[1735237131041,0.208803,95784.0,95770.0,0.212833]
[1735237131289,0.208807,95782.0,95770.0,0.215833]
[1735237131780,0.291799,95786.0,95770.0,0.208833]
[1735237131995,0.001,95776.0,95774.0,0.004]
[1735237133332,0.00130508,95785.0,95770.0,0.213833]
[1735237133333,0.208803,95784.0,95770.0,0.208833]
[1735237133583,0.001,95782.0,95771.0,0.01715685]
[1735237133830,0.00130508,95783.0,95771.0,0.01715685]
[1735237134087,0.00130508,95783.0,95772.0,0.208829]
[1735237134327,0.001,95776.0,95772.0,0.208829]
[1735237135039,0.00130508,95783.0,95772.0,0.208829]
[1735237135295,0.208807,95782.0,95772.0,0.004]
[1735237135789,0.001,95783.0,95772.0,0.004]
[1735237136023,0.00230508,95783.0,95772.0,0.004]
[1735237136374,0.00130508,95783.0,95771.0,0.01715685]
[1735237136726,0.001,95776.0,95772.0,0.009]
[1735237137086,0.001,95776.0,95772.0,0.005]
[1735237137285,0.001,95776.0,95772.0,0.004]
[1735237137703,0.00130508,95783.0,95771.0,0.004]
[1735237137913,0.00130508,95783.0,95771.0,0.02625855]
[1735237138110,0.001,95776.0,95772.0,0.004]
[1735237138526,0.001,95776.0,95772.0,0.009]
[1735237139744,0.001,95776.0,95773.0,0.208827]
[1735237140183,0.208803,95784.0,95772.0,0.005]
[1735237140405,0.00230508,95783.0,95773.0,0.0422671]
[1735237140598,0.0012146,95783.0,95773.0,0.0422671]
[1735237140939,0.001,95776.0,95773.0,0.0512671]
[1735237141153,0.467743,95776.0,95773.0,0.009]
[1735237141368,0.467743,95776.0,95762.0,0.09362764]
[1735237141369,0.208848,95763.0,95762.0,0.09362764]
[1735237141565,0.291048,95763.0,95762.0,0.09362764]
[1735237142029,0.42885621,95763.0,95762.0,0.09362764]
[1735237142247,0.67260983,95763.0,95762.0,0.09362764]
[1735237142664,0.67260983,95763.0,95738.0,0.09362764]
[1735237142876,0.231855,95760.0,95738.0,0.06279884]
[1735237143085,0.417785,95743.0,95742.0,0.00011872]
[1735237143299,0.60397132,95743.0,95742.0,0.00011872]
[1735237144392,0.60397132,95743.0,95738.0,0.00011872]
[1735237144601,0.417792,95741.0,95738.0,0.00011872]
[1735237144814,0.00130579,95740.0,95738.0,0.00011872]
[1735237145024,0.417822,95735.0,95711.0,0.01119548]
[1735237145244,0.00130579,95734.0,95711.0,0.01119548]
[1735237145455,0.00130579,95734.0,95721.0,0.208938]
[1735237145665,0.00130579,95738.0,95721.0,0.208938]
[1735237146085,0.00130579,95738.0,95725.0,0.208931]
[1735237146322,0.208899,95740.0,95721.0,0.208938]
[1735237146552,0.208899,95740.0,95715.0,0.208952]
[1735237146553,0.00130572,95739.0,95715.0,0.208952]
[1735237146775,0.001,95734.0,95730.0,0.0040856]
[1735237146981,0.208914,95733.0,95730.0,0.0040856]
[1735237147206,0.00130579,95732.0,95730.0,0.0050856]
[1735237147416,0.00130579,95732.0,95730.0,0.0090856]
[1735237147631,0.00130579,95732.0,95730.0,8.56e-05]
[1735237147849,0.00130579,95737.0,95730.0,8.56e-05]
[1735237148474,0.001,95734.0,95730.0,0.0050856]
[1735237148707,0.001,95734.0,95731.0,0.52243527]
[1735237148933,0.001,95734.0,95733.0,0.208914]
[1735237149130,0.001,95734.0,95733.0,0.31290032]
[1735237149619,0.001,95734.0,95733.0,0.46290032]
[1735237150071,0.00012422,95743.0,95733.0,0.46290032]
[1735237150283,0.00012422,95743.0,95742.0,0.208894]
[1735237151479,0.00012422,95743.0,95742.0,0.212894]
[1735237152652,0.00112422,95743.0,95742.0,0.216894]
[1735237158428,0.00112422,95743.0,95742.0,0.008]
[1735237158677,0.10283122,95743.0,95742.0,0.008]
[1735237159104,0.08183,95743.0,95742.0,0.008]
[1735237159337,0.208909,95736.0,95724.0,0.0896057]
[1735237159569,0.00130577,95735.0,95723.0,0.208936]
[1735237159811,0.00130577,95734.0,95723.0,0.208936]
[1735237160039,0.00130577,95734.0,95707.0,0.0896057]
[1735237160040,0.208914,95733.0,95721.0,0.15]
[1735237160259,0.00130577,95732.0,95721.0,0.15]
[1735237160465,0.00130577,95732.0,95721.0,0.208938]
[1735237160673,0.00130577,95735.0,95721.0,0.208938]
[1735237161728,0.00130577,95734.0,95721.0,0.208938]
[1735237161927,0.001,95735.0,95721.0,0.208938]
[1735237162137,0.001,95735.0,95723.0,0.004]
[1735237162384,0.00012422,95743.0,95735.0,0.208908]
[1735237162885,0.00012422,95743.0,95739.0,0.208899]
[1735237163378,0.00012422,95743.0,95735.0,0.208908]
[1735237163867,0.00012422,95743.0,95735.0,0.211908]
[1735237164782,0.00012422,95743.0,95735.0,0.003]
[1735237165350,0.00142987,95743.0,95735.0,0.003]
[1735237165814,0.00012422,95743.0,95735.0,0.003]
[1735237166743,0.20901822,95743.0,95735.0,0.003]
[1735237166980,0.00130565,95742.0,95735.0,0.003]
[1735237168297,0.00130565,95742.0,95733.0,0.208912]
[1735237168550,0.00130565,95742.0,95735.0,0.003]
[1735237169298,0.00130565,95742.0,95729.0,0.208921]
[1735237169520,0.00130565,95742.0,95733.0,0.003]
[1735237169762,0.00130565,95742.0,95735.0,8.56e-05]
[1735237171259,0.00130565,95742.0,95735.0,0.0030856]
[1735237173758,0.25213756,95742.0,95735.0,0.0030856]
[1735237173973,0.21020065,95742.0,95735.0,0.0030856]
[1735237174751,0.00130565,95742.0,95735.0,0.0030856]
[1735237174934,0.00130565,95741.0,95735.0,0.0030856]
[1735237175147,0.00029542,95743.0,95735.0,0.0030856]
[1735237175984,0.00029542,95743.0,95735.0,8.56e-05]
[1735237176193,0.00029542,95743.0,95735.0,0.0030856]
[1735237177485,0.00029542,95743.0,95735.0,8.56e-05]
[1735237177695,0.00029542,95743.0,95735.0,0.2119936]
[1735237177894,0.00029542,95743.0,95735.0,0.0030856]
[1735237178551,0.00029542,95743.0,95736.0,0.208907]
[1735237178763,0.00029542,95743.0,95735.0,0.0030856]
[1735237178977,0.00029542,95743.0,95741.0,0.2321]
[1735237179186,0.00029542,95743.0,95742.0,0.10459849]
[1735237179395,0.00029542,95743.0,95742.0,0.46349249]
[1735237179606,0.00029542,95743.0,95742.0,0.46288032]
[1735237180282,0.00929542,95743.0,95742.0,0.46288032]
[1735237180466,0.00029542,95743.0,95742.0,0.56023597]
[1735237180699,0.00929542,95743.0,95742.0,0.56023597]
[1735237181381,0.00886416,95743.0,95742.0,0.90595102]
[1735237181597,0.01786416,95743.0,95742.0,0.90695102]
[1735237181968,0.009,95743.0,95742.0,0.90695102]
[1735237183383,0.00204684,95743.0,95742.0,1.07855102]
[1735237183584,0.00204684,95743.0,95742.0,1.11112965]
[1735237184426,0.0001712,95743.0,95742.0,1.11012965]
[1735237184625,0.0091712,95743.0,95742.0,1.11112965]
[1735237185265,0.00619104,95743.0,95742.0,0.95555102]
[1735237185647,0.01519104,95743.0,95742.0,0.95655102]
[1735237185857,0.01519104,95743.0,95742.0,1.23767163]
[1735237186064,0.00480154,95743.0,95742.0,1.33767163]
[1735237186271,0.0001712,95763.0,95762.0,0.208851]
[1735237186480,0.0001712,95763.0,95762.0,0.2297361]
[1735237188012,0.0001712,95763.0,95762.0,0.0208851]
[1735237189009,0.0001712,95763.0,95762.0,0.0218851]
[1735237190002,0.0001712,95763.0,95762.0,0.0208851]
[1735237190236,0.0001712,95763.0,95762.0,0.001]
[1735237190662,0.0480712,95763.0,95762.0,0.001]
[1735237190869,0.04937663,95763.0,95762.0,0.001]
[1735237191567,0.23166295,95763.0,95762.0,0.001]
[1735237191769,0.23035752,95763.0,95762.0,0.001]
[1735237192029,0.208883,95748.0,95741.0,0.09373341]
[1735237192440,0.417766,95748.0,95741.0,0.09373341]
[1735237192656,0.417766,95748.0,95735.0,8.56e-05]
[1735237192657,0.208883,95748.0,95735.0,8.56e-05]
[1735237192864,0.208862,95757.0,95736.0,0.04433371]
[1735237193068,0.00130554,95756.0,95736.0,0.04433371]
[1735237193406,0.208866,95755.0,95737.0,0.30263741]
[1735237193614,0.00130554,95754.0,95737.0,0.30263741]
[1735237193816,0.20887,95753.0,95741.0,0.008]
[1735237194017,0.00130554,95752.0,95742.0,0.05639617]
[1735237195485,0.00130554,95752.0,95742.0,0.06239617]
[1735237196157,0.00230554,95752.0,95742.0,0.07139617]
[1735237196475,0.00230554,95752.0,95742.0,0.015]
[1735237198152,0.208875,95751.0,95742.0,0.015]
[1735237198366,0.00130554,95750.0,95742.0,0.015]
[1735237198991,0.00130554,95750.0,95742.0,0.006]
[1735237199432,0.00130554,95750.0,95742.0,0.015]
[1735237199637,0.00130554,95750.0,95742.0,0.006]
[1735237199869,0.00130554,95750.0,95736.0,0.13806712]
[1735237200088,0.00230554,95750.0,95742.0,0.009]
[1735237200612,0.00230554,95750.0,95742.0,0.003]
[1735237200825,0.208879,95749.0,95742.0,0.003]
[1735237201062,0.00130554,95748.0,95742.0,0.009]
[1735237201244,0.00230554,95750.0,95742.0,0.009]
[1735237201661,0.00130554,95750.0,95737.0,0.08840467]
[1735237201877,0.01030554,95750.0,95738.0,0.07406508]
[1735237202317,0.00130554,95750.0,95738.0,0.07406508]
[1735237202491,0.00230554,95750.0,95742.0,0.007]
[1735237202930,0.00130554,95750.0,95738.0,0.07406508]
[1735237203139,0.00230554,95750.0,95742.0,0.006]
[1735237203576,0.00130554,95750.0,95735.0,0.4179036]
[1735237203784,0.208878,95750.0,95735.0,8.56e-05]
[1735237203994,0.208881,95748.0,95742.0,0.006]
[1735237204206,0.0465,95746.0,95742.0,0.006]
[1735237204402,0.13795778,95745.0,95733.0,0.00981901]
[1735237204637,0.208907,95737.0,95733.0,0.00012422]
[1735237204850,0.20891,95735.0,95733.0,0.00012422]
[1735237205051,0.00130576,95734.0,95733.0,0.00012422]
[1735237206117,0.001,95735.0,95733.0,0.00612422]
[1735237206311,0.00130576,95734.0,95733.0,0.00912422]
[1735237206514,0.00130576,95734.0,95733.0,0.00312422]
[1735237206926,0.00130576,95734.0,95733.0,0.00012422]
[1735237207244,0.208907,95737.0,95733.0,0.00612422]
[1735237207245,0.00130577,95736.0,95733.0,0.00612422]
[1735237207421,0.00130577,95736.0,95733.0,0.00812422]
[1735237207630,0.00130577,95736.0,95733.0,0.00212422]
[1735237208055,0.20891,95735.0,95733.0,0.00712422]
[1735237208258,0.00130576,95734.0,95733.0,0.00712422]
[1735237209195,0.00130576,95736.0,95733.0,0.00212422]
[1735237209405,0.00130576,95736.0,95733.0,0.005]
[1735237209406,0.41782,95735.0,95733.0,0.005]
[1735237209614,0.00130584,95734.0,95733.0,0.005]
[1735237209826,0.08450584,95734.0,95733.0,0.005]
[1735237210035,0.08550584,95734.0,95733.0,0.006]
[1735237210241,0.08450584,95734.0,95733.0,0.006]
[1735237210452,0.0755,95744.0,95733.0,0.006]
[1735237210657,0.208844,95765.0,95733.0,0.006]
[1735237210658,0.208874,95752.0,95734.0,0.208912]
[1735237210867,0.208877,95750.0,95734.0,0.208912]
[1735237211092,0.00130561,95749.0,95734.0,0.208912]
[1735237211323,0.00120561,95749.0,95734.0,0.208912]
[1735237211524,0.00120561,95749.0,95733.0,0.003]
[1735237211728,0.0755,95764.0,95735.0,0.00071271]
[1735237211935,0.0755,95764.0,95736.0,0.10398632]
[1735237212138,0.0755,95764.0,95733.0,0.003]
[1735237212139,0.09166529,95760.0,95733.0,0.003]
[1735237212344,0.208885,95747.0,95733.0,0.003]
[1735237212549,0.208881,95749.0,95733.0,0.003]
[1735237212760,0.00130553,95748.0,95733.0,0.002]
[1735237212962,0.208876,95751.0,95733.0,0.002]
[1735237213165,0.00130553,95750.0,95729.0,0.01091048]
[1735237213370,0.208879,95749.0,95734.0,0.208912]
[1735237213541,0.00130553,95748.0,95734.0,0.208912]
[1735237213744,0.00130553,95750.0,95734.0,0.417824]
[1735237213967,0.00130553,95750.0,95738.0,0.208902]
[1735237214090,0.009,95748.0,95738.0,0.208902]
[1735237214332,0.00130553,95750.0,95733.0,0.001]
[1735237214543,0.217879,95749.0,95734.0,0.208912]
[1735237214787,0.00130554,95748.0,95734.0,0.208912]
[1735237215757,0.009,95749.0,95734.0,0.208912]
[1735237215985,0.00130553,95751.0,95738.0,0.208903]
[1735237216191,0.003,95750.0,95738.0,0.208903]
[1735237216396,0.009,95748.0,95738.0,0.209903]
[1735237216578,0.00130553,95749.0,95738.0,0.208903]
[1735237216778,0.01101307,95763.0,95739.0,0.10469889]
[1735237216779,0.003,95748.0,95739.0,0.10469889]
[1735237217139,0.00146064,95761.0,95744.0,0.417778]
[1735237217552,0.208855,95760.0,95744.0,0.417778]
[1735237217753,0.0013054,95759.0,95744.0,0.417778]
[1735237218179,0.009,95750.0,95744.0,0.417778]
[1735237218653,0.006,95748.0,95744.0,0.417778]
[1735237219723,0.0091712,95750.0,95744.0,0.417778]
[1735237219933,0.0091712,95750.0,95749.0,0.208879]
[1735237219934,0.0001712,95750.0,95749.0,0.208879]
[1735237220141,0.0001712,95750.0,95749.0,0.31286532]
[1735237221314,0.0091712,95750.0,95749.0,0.31386532]
[1735237221891,0.0001712,95750.0,95749.0,0.65883721]
[1735237222077,0.0001712,95750.0,95749.0,0.76282353]
[1735237222513,0.0001712,95750.0,95749.0,0.76382353]
[1735237222514,0.0061712,95750.0,95749.0,0.76382353]
[1735237222688,0.0061712,95750.0,95749.0,0.65983721]
[1735237222894,0.0001712,95750.0,95749.0,0.65883721]
[1735237223107,0.0091712,95750.0,95749.0,0.65983721]
[1735237223276,0.0151712,95750.0,95749.0,0.66083721]
[1735237225255,0.0091712,95750.0,95749.0,0.34697189]
[1735237225730,0.28450824,95761.0,95750.0,0.208877]
[1735237225936,0.07565524,95761.0,95750.0,0.208877]
[1735237226159,0.07565524,95761.0,95750.0,0.31286332]
[1735237227318,0.29050924,95761.0,95750.0,0.209877]
[1735237227552,0.00130539,95760.0,95750.0,0.09569892]
[1735237227759,0.00130539,95760.0,95750.0,0.09469892]
[1735237228141,0.00130539,95760.0,95750.0,0.10069892]
[1735237228562,0.208857,95759.0,95750.0,0.10069892]
[1735237228776,0.00130539,95760.0,95750.0,0.007]
[1735237228777,0.208875,95751.0,95750.0,0.007]
[1735237228996,0.208875,95751.0,95750.0,0.006]
[1735237229441,0.208875,95751.0,95748.0,0.08169891]
[1735237229676,0.00130551,95750.0,95748.0,0.08169891]
[1735237230219,0.00130551,95750.0,95736.0,0.34945439]
[1735237230220,0.208879,95749.0,95736.0,0.34945439]
[1735237230425,0.00130556,95748.0,95736.0,0.34945439]
[1735237230628,0.208883,95747.0,95736.0,0.14054839]
[1735237230835,0.208888,95745.0,95736.0,0.14054839]
[1735237231059,0.00130557,95744.0,95736.0,0.14054839]
[1735237231271,0.208883,95747.0,95736.0,0.14054839]
[1735237231272,0.00130557,95746.0,95736.0,0.14054839]
[1735237231847,0.00130557,95746.0,95736.0,0.209907]
[1735237231998,0.00130557,95746.0,95736.0,0.208907]
[1735237232205,0.00627668,95745.0,95736.0,0.208907]
[1735237232413,0.00627668,95745.0,95736.0,0.209907]
[1735237232586,0.01030557,95747.0,95736.0,0.209907]
[1735237232791,0.00130557,95746.0,95736.0,0.209907]
[1735237233001,0.00747117,95746.0,95736.0,0.208907]
[1735237233196,0.007,95745.0,95736.0,0.209907]
[1735237233444,0.009,95744.0,95736.0,0.418814]
[1735237233661,0.0001712,95750.0,95733.0,8.56e-05]
[1735237233662,0.0001712,95750.0,95737.0,0.10469896]
[1735237233876,0.0001712,95750.0,95749.0,0.208879]
[1735237234709,0.0001712,95750.0,95746.0,0.208884]
[1735237235312,0.0011712,95750.0,95749.0,0.001]
[1735237235788,0.0021712,95750.0,95749.0,0.001]
[1735237236173,0.0011712,95750.0,95749.0,0.001]
[1735237236794,0.0001712,95750.0,95747.0,0.208883]
[1735237237018,0.0021712,95750.0,95749.0,0.003]
[1735237237413,0.0011712,95750.0,95749.0,0.003]
[1735237237660,0.0021712,95750.0,95749.0,0.003]
[1735237238257,0.0011712,95750.0,95744.0,0.14054839]
[1735237238462,0.0011712,95750.0,95747.0,0.208883]
[1735237238665,0.0021712,95750.0,95747.0,0.214883]
[1735237239096,0.0011712,95750.0,95747.0,0.208883]
[1735237239456,0.0021712,95750.0,95747.0,0.208883]
[1735237239825,0.0011712,95750.0,95747.0,0.208883]
[1735237240029,0.0001712,95750.0,95743.0,0.20889]
[1735237240206,0.0021712,95750.0,95747.0,0.007]
[1735237240917,0.0011712,95750.0,95747.0,0.006]
[1735237241279,0.0001712,95750.0,95746.0,0.09378735]
[1735237241640,0.0011712,95750.0,95746.0,0.09378735]
[1735237241875,0.0021712,95750.0,95746.0,0.09378735]
[1735237242277,0.21018557,95749.0,95746.0,0.09378735]
[1735237242609,0.21630588,95749.0,95746.0,0.09978735]
[1735237242734,0.208883,95747.0,95746.0,0.09978735]
[1735237242948,0.21501669,95747.0,95746.0,0.09978735]
[1735237243139,0.21501669,95747.0,95746.0,0.09378735]
[1735237243556,0.3030427,95747.0,95746.0,0.09478735]
[1735237243757,0.208912,95734.0,95733.0,0.09387295]
[1735237243960,0.38809832,95734.0,95733.0,0.09387295]
[1735237244159,0.46411165,95734.0,95733.0,0.09387295]
[1735237244366,0.023,95730.0,95728.0,0.10781919]
[1735237244583,0.33721526,95729.0,95728.0,0.10781919]
[1735237244749,0.34202208,95729.0,95728.0,0.10781919]
[1735237244956,0.208955,95714.0,95713.0,0.09381426]
[1735237245619,0.21506776,95714.0,95713.0,0.09396955]
[1735237246043,0.2718743,95714.0,95713.0,0.09396955]
[1735237246244,0.3480743,95714.0,95713.0,0.09996955]
[1735237246422,0.3480743,95714.0,95713.0,0.00615529]
[1735237247111,0.3490743,95714.0,95713.0,0.00715529]
[1735237248215,0.3480743,95714.0,95713.0,0.00115529]
[1735237248539,0.45106062,95714.0,95713.0,0.00015529]
[1735237248754,0.45106062,95714.0,95713.0,0.00415529]
[1735237249223,0.45106062,95714.0,95713.0,0.00015529]
[1735237249477,0.39425408,95714.0,95713.0,0.002]
[1735237250429,0.39425408,95714.0,95713.0,0.003]
[1735237250632,0.39425408,95714.0,95695.0,0.208996]
[1735237250877,0.208972,95707.0,95695.0,0.20951322]
[1735237251241,0.00596778,95706.0,95695.0,0.20951322]
[1735237251819,0.00596778,95706.0,95695.0,0.21451322]
[1735237251950,0.00596778,95706.0,95695.0,0.21551322]
[1735237252770,0.00596778,95706.0,95695.0,0.21051322]
[1735237252972,0.00596778,95706.0,95700.0,0.208985]
[1735237253415,0.0752,95714.0,95704.0,0.208976]
[1735237253623,0.001,95706.0,95704.0,0.208976]
[1735237253822,0.001,95706.0,95700.0,0.208985]
[1735237254564,0.208961,95712.0,95700.0,0.208985]
[1735237254743,0.00130609,95711.0,95704.0,0.006]
[1735237254893,0.002,95706.0,95704.0,0.006]
[1735237255100,0.001,95706.0,95704.0,0.006]
[1735237255302,0.00130609,95711.0,95700.0,0.208985]
[1735237255531,0.001,95706.0,95700.0,0.216985]
[1735237256551,0.002,95706.0,95700.0,0.217985]